bitfinex/quotes_SOLUSD_20250731
["timestamp","ask_amount","ask_price","bid_price","bid_amount"]
[1753997826176,3.79344864,175.03,175.02,0.71]
[1753997826373,46.09303594,175.04,175.02,0.71]
[1753997828454,173.6,175.07,175.02,7.48004162]
[1753997828653,44.17839962,175.06,175.03,7.48004162]
[1753997828853,40.36,175.06,175.04,0.71]
[1753997829660,46.07237419,175.06,175.04,0.71]
[1753997831265,40.36,175.06,175.04,7.48004162]
[1753997831458,4.77177544,175.13,175.05,7.48004162]
[1753997831664,3.81724435,175.13,175.12,6.77004162]
[1753997831882,44.62184147,175.13,175.12,7.48004162]
[1753997832086,40.38,175.13,175.12,0.71]
[1753997832285,40.38,175.13,175.12,7.48004162]
[1753997832286,44.19781648,175.13,175.12,7.48004162]
[1753997832692,40.38,175.13,175.12,7.48004162]
[1753997832901,2.97968063,175.18,175.12,7.48004162]
[1753997833073,44.60254354,175.17,175.14,6.77004162]
[1753997833393,3.81862508,175.16,175.15,0.71]
[1753997834294,3.81862508,175.16,175.15,7.48004162]
[1753997834468,3.81862508,175.16,175.15,0.71]
[1753997835491,3.81862508,175.16,175.15,7.48004162]
[1753997836090,40.36,175.17,175.15,7.48004162]
[1753997836311,40.36,175.17,175.16,7.48004162]
[1753997836607,44.17862786,175.17,175.16,7.48004162]
[1753997836785,3.81862786,175.17,175.16,7.48004162]
[1753997836990,40.36,175.19,175.16,7.48004162]
[1753997837290,40.36,175.19,175.18,6.77004162]
[1753997837480,40.36,175.19,175.18,7.48004162]
[1753997842817,40.36,175.19,175.11,17.35575358]
[1753997842818,40.36,175.19,175.17,6.77004162]
[1753997846301,40.39,175.19,175.17,6.77004162]
[1753997847696,41.08,175.19,175.17,6.77004162]
[1753997848304,46.78814612,175.19,175.17,6.77004162]
[1753997849425,46.09814612,175.19,175.16,6.77004162]
[1753997849630,0.69,175.18,175.16,6.77004162]
[1753997849936,40.34,175.17,175.16,6.77004162]
[1753997850597,41.03,175.17,175.14,6.77004162]
[1753997850798,0.69,175.16,175.14,6.77004162]
[1753997850999,40.34,175.15,175.13,6.77004162]
[1753997852517,46.73942634,175.15,175.12,6.77004162]
[1753997855906,0.68,175.14,175.12,6.77004162]
[1753997856212,40.34,175.13,175.12,6.77004162]
[1753997857211,40.34,175.13,175.12,7.48004162]
[1753997857415,153.30849226,175.18,175.12,7.48004162]
[1753997857636,153.30849226,175.18,175.1,5.71091755]
[1753997857637,40.34,175.17,175.16,6.77004162]
[1753997858012,40.34,175.17,175.15,6.77004162]
[1753997859405,40.34,175.17,175.14,7.48004162]
[1753997859945,40.32,175.16,175.15,0.71]
[1753997860126,40.32,175.16,175.15,6.77004162]
[1753997860750,40.32,175.16,175.15,7.48004162]
[1753997871328,40.32,175.16,175.15,6.77004162]
[1753997871533,41.0,175.16,175.11,0.71]
[1753997871755,0.68,175.15,175.1,6.77004162]
[1753997871925,40.32,175.14,175.1,6.77004162]
[1753997872132,0.68,175.13,175.1,6.77004162]
[1753997872460,41.0,175.12,175.1,6.77004162]
[1753997872751,41.0,175.11,175.1,6.77004162]
[1753997872957,41.0,175.11,175.08,0.71]
[1753997872958,41.0,175.11,175.09,6.77004162]
[1753997875350,40.32,175.11,175.09,6.77004162]
[1753997875554,41.0,175.11,175.09,6.77004162]
[1753997877234,46.71073428,175.11,175.09,6.77004162]
[1753997877550,41.0,175.11,175.09,6.77004162]
[1753997877855,41.0,175.11,175.07,0.77]
[1753997877856,41.0,175.11,175.08,6.77004162]
[1753997878956,0.68,175.1,175.08,6.77004162]
[1753997879150,40.32,175.09,175.08,6.77004162]
[1753997881369,46.03141814,175.09,175.07,0.06]
[1753997881572,46.71141814,175.09,175.07,0.06]
[1753997882157,0.68,175.12,175.08,7.48004162]
[1753997882372,41.0,175.11,175.08,7.48004162]
[1753997883370,40.32,175.11,175.08,7.48004162]
[1753997884072,4.51191901,175.1,175.07,0.06]
[1753997884252,40.32,175.12,175.09,6.77004162]
[1753997884557,5.70909708,175.16,175.11,6.77004162]
[1753997884757,40.32,175.15,175.13,6.77004162]
[1753997884959,40.32,175.15,175.14,6.77004162]
[1753997885159,44.15310982,175.15,175.14,6.77004162]
[1753997885355,44.15310982,175.15,175.13,7.43004162]
[1753997885555,3.83310982,175.14,175.13,7.43004162]
[1753997886264,40.32,175.15,175.13,7.43004162]
[1753997886467,40.32,175.15,175.14,6.77004162]
[1753997886764,44.15540366,175.15,175.14,6.77004162]
[1753997887255,44.15540366,175.15,175.14,7.43004162]
[1753997887862,3.83540366,175.15,175.14,7.43004162]
[1753997888066,3.83540366,175.16,175.14,7.43004162]
[1753997888251,3.83540366,175.16,175.15,7.43004162]
[1753997890065,3.86540366,175.16,175.15,7.43004162]
[1753997890452,0.03,175.16,175.15,7.43004162]
[1753997891972,0.03,175.16,175.15,39.13943356]
[1753997897669,0.03,175.16,175.15,55.92411753]
[1753997900951,0.03,175.16,175.15,32.77004162]
[1753997901155,0.73,175.16,175.15,32.77004162]
[1753997901672,0.73,175.16,175.15,6.77004162]
[1753997901869,0.73,175.16,175.15,32.77004162]
[1753997903076,0.73,175.16,175.15,6.77004162]
[1753997903483,0.73,175.16,175.14,6.77004162]
[1753997903853,6.43911458,175.16,175.13,6.77004162]
[1753997904080,0.7,175.15,175.09,0.66]
[1753997904287,0.7,175.15,175.13,6.77004162]
[1753997906384,0.7,175.15,175.12,6.77004162]
[1753997906589,50.51786644,175.15,175.11,32.77004162]
[1753997906882,0.7,175.14,175.11,32.77004162]
[1753997907178,0.7,175.14,175.07,6.43188954]
[1753997907179,6.4098879,175.14,175.09,26.0]
[1753997907383,0.7,175.13,175.1,6.77004162]
[1753997907784,0.7,175.13,175.09,32.77004162]
[1753997908075,4.52748183,175.13,175.09,32.77004162]
[1753997908262,0.7,175.12,175.09,32.77004162]
[1753997908970,6.41039433,175.12,175.09,6.77004162]
[1753997909177,0.7,175.11,175.09,6.77004162]
[1753997910880,40.3,175.1,175.07,6.83004162]
[1753997911182,0.7,175.09,175.07,6.83004162]
[1753997911559,0.7,175.09,175.07,0.06]
[1753997912883,160.08171628,175.08,175.07,0.06]
[1753997913279,160.78171628,175.08,175.07,0.06]
[1753997913773,164.60421647,175.08,175.07,0.06]
[1753997915081,169.12074277,175.08,175.07,0.06]
[1753997915665,169.12074277,175.08,175.07,1e-08]
[1753997915666,67.28692007,175.08,175.07,1e-08]
[1753997915874,47.8262765,175.08,175.07,1e-08]
[1753997916190,42.78468397,175.06,175.05,0.06]
[1753997916376,97.92661521,175.06,175.05,0.06]
[1753997916679,102.86411577,175.06,175.05,0.06]
[1753997916865,108.57644297,175.06,175.05,0.06]
[1753997917067,107.18763805,175.06,175.05,0.06]
[1753997918970,83.29486901,175.06,175.05,0.06]
[1753997919367,79.47236882,175.06,175.05,0.06]
[1753997920865,153.31209741,175.07,175.05,0.06]
[1753997921066,66.3,175.06,175.05,0.74]
[1753997921274,40.3,175.06,175.05,0.74]
[1753997922570,40.3,175.06,175.05,7.51004162]
[1753997924697,36.44071391,175.11,175.05,7.51004162]
[1753997924698,40.3,175.08,175.05,7.51004162]
[1753997925002,40.3,175.08,175.07,6.77004162]
[1753997925202,40.3,175.08,175.07,7.45004162]
[1753997925768,147.6,175.12,175.07,7.45004162]
[1753997925991,5.70939194,175.15,175.08,0.68]
[1753997926198,40.3,175.14,175.11,6.77004162]
[1753997926493,40.3,175.14,175.11,7.45004162]
[1753997926987,0.69,175.13,175.08,0.68]
[1753997927183,40.3,175.12,175.09,7.45004162]
[1753997927501,0.69,175.11,175.07,6.77004162]
[1753997927702,0.69,175.11,175.07,7.45004162]
[1753997929595,6.4007465,175.11,175.07,0.68]
[1753997929804,13.17078812,175.11,175.07,0.68]
[1753997931091,13.17078812,175.11,175.05,0.06]
[1753997931092,0.69,175.1,175.05,7.51004162]
[1753997931405,40.3,175.09,175.06,0.68]
[1753997932601,40.3,175.09,175.06,7.45004162]
[1753997932900,40.3,175.09,175.06,0.68]
[1753997933082,40.3,175.09,175.06,7.45004162]
[1753997933700,40.3,175.09,175.08,6.77004162]
[1753997933907,40.3,175.09,175.08,7.45004162]
[1753997940817,40.99,175.09,175.06,6.77004162]
[1753997941013,0.69,175.08,175.06,6.77004162]
[1753997942212,0.69,175.07,175.05,6.83004162]
[1753997942614,40.3,175.06,175.05,6.83004162]
[1753997942911,40.99,175.06,175.05,0.06]
[1753997943909,47.76004162,175.06,175.05,0.06]
[1753997944308,53.47236882,175.06,175.05,0.06]
[1753997945012,57.29871054,175.06,175.05,0.06]
[1753997946617,60.28024225,175.06,175.05,0.06]
[1753997946826,77.06492622,175.06,175.05,0.06]
[1753997948126,81.32162683,175.06,175.05,1e-08]
[1753997948330,92.87982576,175.06,175.05,1e-08]
[1753997948618,92.87982576,175.06,175.0,0.2]
[1753997948619,6.77004162,175.01,175.0,0.2]
[1753997948836,47.07004162,175.01,175.0,0.2]
[1753997949008,50.89638334,175.01,175.0,0.2]
[1753997949208,51.55638334,175.01,175.0,0.2]
[1753997949820,57.27034254,175.01,175.0,0.2]
[1753997952507,49.84030092,175.01,175.0,0.2]
[1753997952719,49.84030092,175.01,175.0,0.92]
[1753997952894,50.50030092,175.01,175.0,0.2]
[1753997953806,198.10030092,175.01,175.0,0.2]
[1753997955428,197.44030092,175.01,175.0,0.2]
[1753997955729,204.87034254,175.01,175.0,0.2]
[1753997959027,78.30832234,175.01,175.0,1e-08]
[1753997961636,74.05502651,175.01,175.0,1e-08]
[1753997961836,78.30357386,175.01,175.0,1e-08]
[1753997966036,74.05502651,175.01,175.0,1e-08]
[1753997967049,77.03748245,175.01,175.0,1e-08]
[1753997968148,83.56701272,175.01,175.0,1e-08]
[1753997970351,83.56466109,175.01,175.0,1e-08]
[1753997971263,90.65290317,175.01,175.0,1e-08]
[1753997975149,89.99290317,175.01,175.0,1e-08]
[1753997975331,83.46572453,175.01,175.0,1e-08]
[1753997975857,84.18572453,175.01,175.0,1e-08]
[1753997976240,88.42061333,175.01,175.0,1e-08]
[1753997976653,88.42061333,175.01,174.98,0.06]
[1753997976654,26.0,174.99,174.98,1e-08]
[1753997976853,88.23951422,174.99,174.98,1e-08]
[1753997977238,91.25079222,174.99,174.98,1e-08]
[1753997977438,96.96540448,174.99,174.98,1e-08]
[1753997978463,101.76847165,174.99,174.98,1e-08]
[1753997979259,106.00231879,174.99,174.98,1e-08]
[1753997980038,26.0,174.95,174.93,0.92]
[1753997980246,50.90232974,174.94,174.93,0.2]
[1753997980451,50.90232974,174.94,174.93,0.92]
[1753997980851,55.46012543,174.94,174.93,0.92]
[1753997981562,61.17637099,174.94,174.93,0.2]
[1753997983768,63.96983181,174.94,174.93,0.2]
[1753997986246,81.47451578,174.94,174.93,1e-08]
[1753997986448,90.51653601,174.94,174.93,1e-08]
[1753997986643,99.89658209,174.94,174.93,1e-08]
[1753997986858,32.77004162,174.92,174.91,1e-08]
[1753997987060,55.1412828,174.92,174.91,1e-08]
[1753997987374,58.12544106,174.92,174.91,1e-08]
[1753997987570,53.886488,174.92,174.91,1e-08]
[1753997988071,58.12902937,174.92,174.91,0.72000001]
[1753997988256,59.60338715,174.92,174.91,0.72000001]
[1753997990145,55.79109903,174.92,174.91,0.72000001]
[1753997990345,3.82066195,174.92,174.91,0.72000001]
[1753997990649,44.14066195,174.92,174.91,0.72000001]
[1753997996455,40.32,174.92,174.91,0.72000001]
[1753997997853,40.32,174.92,174.91,1e-08]
[1753997998073,49.8656296,174.92,174.91,1e-08]
[1753997998571,49.8656296,174.92,174.91,0.72000001]
[1753997999754,40.32,174.92,174.91,0.72000001]
[1753998000251,8.54032087,174.99,174.91,7.49004163]
[1753998000575,8.09341267,174.98,174.92,0.72]
[1753998000759,3.83339639,174.97,174.92,0.72]
[1753998000948,0.03,175.01,174.96,6.77004162]
[1753998001147,0.03,175.01,175.0,6.77004162]
[1753998001460,44.32312972,175.01,174.97,0.72]
[1753998001679,3.83312972,175.0,174.98,0.72]
[1753998001974,40.46,174.99,174.98,0.72]
[1753998002865,50.00737044,174.99,174.95,0.72]
[1753998003069,3.83245697,174.98,174.95,0.72]
[1753998003261,40.48,174.97,174.94,6.77004162]
[1753998003458,40.48,174.97,174.94,7.49004162]
[1753998003652,40.48,174.97,174.95,6.77004162]
[1753998003867,40.48,174.97,174.94,7.49004162]
[1753998004582,40.48,174.97,174.94,0.65]
[1753998004755,40.48,174.97,174.94,7.42004162]
[1753998004952,46.19534392,174.97,174.94,7.42004162]
[1753998005155,3.83179865,174.96,174.93,6.77004162]
[1753998005380,41.14,174.95,174.91,1e-08]
[1753998005576,3.83179865,174.94,174.91,1e-08]
[1753998005881,40.5,174.93,174.91,1e-08]
[1753998007256,0.66,174.92,174.91,1e-08]
[1753998007474,4.49173298,174.92,174.91,1e-08]
[1753998007880,11.2617746,174.92,174.91,1e-08]
[1753998008882,16.97867375,174.92,174.91,1e-08]
[1753998009376,10.20863213,174.92,174.91,1e-08]
[1753998009676,9.54863213,174.92,174.91,1e-08]
[1753998010080,10.20863213,174.92,174.91,1e-08]
[1753998011864,16.97867375,174.92,174.91,1e-08]
[1753998013076,21.23561814,174.92,174.91,1e-08]
[1753998013775,16.97867375,174.92,174.91,1e-08]
[1753998015474,9.54863213,174.92,174.91,1e-08]
[1753998016368,10.20863213,174.92,174.91,1e-08]
[1753998018082,16.97867375,174.92,174.91,1e-08]
[1753998018691,42.27719671,174.92,174.91,1e-08]
[1753998019267,47.05302414,174.92,174.91,1e-08]
[1753998020177,42.78468397,174.91,174.9,1e-08]
[1753998020389,107.90700748,174.91,174.9,1e-08]
[1753998021287,107.90722525,174.91,174.9,1e-08]
[1753998021488,83.48722061,174.91,174.89,1e-08]
[1753998021666,36.55910975,174.9,174.89,1e-08]
[1753998021866,42.27666263,174.9,174.89,1e-08]
[1753998022477,49.69670463,174.9,174.89,1e-08]
[1753998022971,16.78468397,174.86,174.78,0.65]
[1753998023268,16.78468397,174.86,174.77,6.77004162]
[1753998023269,6.77004162,174.82,174.77,6.77004162]
[1753998023476,40.56,174.81,174.77,6.77004162]
[1753998023987,46.28058032,174.81,174.77,6.77004162]
[1753998024189,46.28058032,174.81,174.78,0.65]
[1753998024481,46.28058032,174.81,174.76,7.42004162]
[1753998024681,46.28058032,174.81,174.76,6.77004162]
[1753998024887,46.28058032,174.81,174.77,7.42004162]
[1753998025895,46.28058032,174.81,174.77,0.65]
[1753998026065,46.28058032,174.81,174.77,7.42004162]
[1753998026687,53.71062194,174.81,174.77,0.65]
[1753998026890,53.71062194,174.81,174.76,6.77004162]
[1753998027084,53.71062194,174.81,174.76,7.42004162]
[1753998027881,16.78468397,174.8,174.73,0.1]
[1753998028078,16.78468397,174.8,174.74,7.42004162]
[1753998028079,47.31004162,174.79,174.74,7.42004162]
[1753998028273,5.72147843,174.78,174.75,0.65]
[1753998028475,40.56,174.77,174.75,0.65]
[1753998028796,40.56,174.77,174.75,7.42004162]
[1753998029293,40.56,174.77,174.75,0.65]
[1753998029473,40.56,174.77,174.75,7.42004162]
[1753998033374,40.56,174.77,174.76,7.42004162]
[1753998034175,40.56,174.77,174.76,0.65]
[1753998034379,147.6,174.8,174.76,7.42004162]
[1753998034681,40.54,174.79,174.78,6.77004162]
[1753998034887,40.54,174.79,174.78,7.48004162]
[1753998036298,40.54,174.79,174.77,6.77004162]
[1753998037090,40.54,174.79,174.77,7.48004162]
[1753998037594,40.54,174.79,174.77,6.77004162]
[1753998039002,0.65,174.78,174.74,6.77004162]
[1753998039185,41.17,174.77,174.74,6.77004162]
[1753998039510,0.65,174.76,174.73,6.87004162]
[1753998039687,12.4912793,174.79,174.73,0.1]
[1753998039688,40.54,174.75,174.73,0.1]
[1753998039896,40.56,174.74,174.73,0.1]
[1753998041498,41.21,174.74,174.73,0.1]
[1753998041904,46.93278814,174.74,174.73,0.1]
[1753998047189,53.70282976,174.74,174.73,0.1]
[1753998047410,70.48751373,174.74,174.73,0.1]
[1753998051504,74.70148613,174.74,174.73,0.1]
[1753998052406,78.49507095,174.74,174.73,0.1]
[1753998056487,82.71031902,174.74,174.73,0.1]
[1753998056794,82.71031416,174.74,174.73,1e-08]
[1753998057113,26.0,174.71,174.62,6.77004162]
[1753998057417,6.77004162,174.67,174.61,7.48004162]
[1753998057708,40.54,174.66,174.61,7.48004162]
[1753998057899,41.19,174.66,174.61,0.71]
[1753998058095,41.19,174.66,174.61,7.48004162]
[1753998058306,41.19,174.66,174.62,0.71]
[1753998060331,40.54,174.66,174.63,7.48004162]
[1753998060518,40.54,174.66,174.63,6.77004162]
[1753998060817,40.54,174.66,174.64,0.71]
[1753998061818,41.19,174.66,174.6,5.72735783]
[1753998062017,41.19,174.66,174.62,6.77004162]
[1753998062018,40.54,174.66,174.62,6.77004162]
[1753998062307,40.54,174.66,174.63,0.71]
[1753998063005,40.54,174.66,174.64,0.71]
[1753998064493,40.54,174.66,174.61,5.72684812]
[1753998064494,40.54,174.66,174.63,6.77004162]
[1753998064696,40.54,174.66,174.61,5.72684812]
[1753998064697,41.26,174.66,174.61,6.39684812]
[1753998064917,41.26,174.66,174.62,7.44004162]
[1753998065112,41.26,174.66,174.64,0.06]
[1753998067113,46.98544264,174.66,174.64,0.06]
[1753998067306,0.72,174.65,174.64,0.06]
[1753998067907,6.44573718,174.65,174.64,0.06]
[1753998068402,10.66365658,174.65,174.64,0.06]
[1753998068598,38.01444735,174.65,174.64,0.06]
[1753998071016,42.57666663,174.65,174.64,0.06]
[1753998083334,16.78468397,174.64,174.62,0.06]
[1753998083541,51.1061068,174.63,174.62,0.06]
[1753998083741,55.32367109,174.63,174.62,0.06]
[1753998084233,61.77006403,174.63,174.62,0.06]
[1753998084727,78.554748,174.63,174.62,1e-08]
[1753998084913,85.324789,174.63,174.62,1e-08]
[1753998085110,89.54493529,174.63,174.62,1e-08]
[1753998085314,52.78468397,174.59,174.48,0.67]
[1753998085511,17.21,174.6,174.49,6.77004162]
[1753998085512,16.78468397,174.54,174.49,6.77004162]
[1753998085717,15.34497458,174.58,174.53,6.77004162]
[1753998085917,48.57531101,174.57,174.54,0.67]
[1753998086119,14.78535263,174.56,174.52,0.67]
[1753998086321,12.4997156,174.53,174.49,0.67]
[1753998086526,48.6114726,174.52,174.49,0.67]
[1753998086848,14.78082188,174.51,174.44,0.1]
[1753998087017,55.40025505,174.5,174.46,0.67]
[1753998087207,48.63021343,174.49,174.46,0.67]
[1753998087411,40.62,174.49,174.46,0.67]
[1753998087637,40.62,174.49,174.44,7.54004162]
[1753998087831,50.38129357,174.49,174.44,6.87004162]
[1753998088010,50.38129357,174.49,174.45,0.67]
[1753998088210,50.38129357,174.49,174.46,0.67]
[1753998088211,43.61125195,174.49,174.46,0.67]
[1753998088413,2.99125195,174.49,174.48,6.77004162]
[1753998088616,5.72764781,174.6,174.51,26.0]
[1753998088843,5.72764781,174.6,174.56,6.77004162]
[1753998088844,44.88888163,174.59,174.56,6.77004162]
[1753998089022,40.68,174.59,174.55,6.77004162]
[1753998089221,47.45004162,174.59,174.54,6.77004162]
[1753998089523,14.76800342,174.58,174.52,6.77004162]
[1753998089836,40.68,174.57,174.52,6.77004162]
[1753998090012,44.3252052,174.57,174.52,6.77004162]
[1753998090218,43.6052052,174.57,174.52,6.77004162]
[1753998090739,5.72868927,174.56,174.48,26.0]
[1753998090926,40.7,174.55,174.52,6.77004162]
[1753998091316,40.7,174.55,174.51,6.77004162]
[1753998091936,40.7,174.55,174.5,6.77004162]
[1753998092738,5.7293457,174.54,174.5,6.77004162]
[1753998092933,40.7,174.53,174.44,5.83251852]
[1753998093243,40.7,174.53,174.48,6.77004162]
[1753998093421,41.42,174.53,174.48,6.77004162]
[1753998094822,5.73000229,174.52,174.49,6.77004162]
[1753998095023,40.72,174.51,174.5,6.77004162]
[1753998095219,16.78468397,174.57,174.5,6.77004162]
[1753998095441,40.7,174.56,174.54,6.77004162]
[1753998095945,40.7,174.56,174.53,6.77004162]
[1753998097144,46.42871339,174.56,174.47,31.73155646]
[1753998097327,0.67,174.55,174.47,26.0]
[1753998097521,44.92668769,174.54,174.5,6.77004162]
[1753998097732,41.39,174.54,174.5,6.77004162]
[1753998097937,0.67,174.53,174.49,6.77004162]
[1753998098627,0.67,174.53,174.47,26.0]
[1753998099044,0.67,174.53,174.49,6.77004162]
[1753998099237,5.73000229,174.52,174.49,6.77004162]
[1753998099439,40.78,174.51,174.49,6.77004162]
[1753998099637,40.78,174.51,174.44,0.1]
[1753998099973,47.55004162,174.51,174.44,26.1]
[1753998100123,40.78,174.51,174.44,0.1]
[1753998100324,40.78,174.51,174.44,5.83258296]
[1753998100527,40.88,174.52,174.5,6.77004162]
[1753998100759,40.88,174.52,174.51,6.77004162]
[1753998105454,5.72878629,174.56,174.51,6.77004162]
[1753998105654,40.84,174.55,174.54,6.77004162]
[1753998106785,41.51,174.55,174.54,6.77004162]
[1753998107067,189.11,174.55,174.54,6.77004162]
[1753998109043,194.83901747,174.55,174.54,6.77004162]
[1753998110079,194.86901747,174.55,174.54,6.77004162]
[1753998110388,194.19901747,174.55,174.54,6.77004162]
[1753998110571,194.86901747,174.55,174.49,0.06]
[1753998110767,194.86901747,174.55,174.53,6.77004162]
[1753998111069,148.27,174.54,174.52,6.77004162]
[1753998111386,40.78,174.53,174.49,0.06]
[1753998111878,41.45,174.53,174.49,0.06]
[1753998112592,41.45,174.53,174.52,6.77004162]
[1753998113465,41.45,174.53,174.51,6.77004162]
[1753998113666,0.67,174.52,174.51,6.77004162]
[1753998115274,0.67,174.52,174.5,6.77004162]
[1753998115461,40.74,174.51,174.5,6.77004162]
[1753998115667,41.41,174.51,174.5,6.77004162]
[1753998116005,41.41,174.51,174.49,0.06]
[1753998116196,41.41,174.51,174.5,6.77004162]
[1753998116495,41.41,174.51,174.49,0.06]
[1753998116692,41.41,174.51,174.5,6.77004162]
[1753998117275,40.74,174.51,174.5,6.77004162]
[1753998118188,147.6,174.54,174.5,6.77004162]
[1753998118189,40.72,174.53,174.5,6.77004162]
[1753998118378,40.72,174.53,174.52,6.77004162]
[1753998118999,40.72,174.53,174.49,5.79094882]
[1753998119273,147.6,174.54,174.52,6.77004162]
[1753998119609,147.6,174.54,174.53,6.77004162]
[1753998124878,148.31,174.54,174.53,6.77004162]
[1753998127792,147.6,174.54,174.53,6.77004162]
[1753998127994,148.31,174.54,174.53,6.77004162]
[1753998133486,148.31,174.54,174.5,5.73056238]
[1753998133683,41.33,174.53,174.5,5.73056238]
[1753998133886,40.62,174.53,174.52,6.77004162]
[1753998134399,40.62,174.53,174.49,0.06]
[1753998134602,0.71,174.52,174.49,0.06]
[1753998134807,40.62,174.53,174.49,0.06]
[1753998134989,0.71,174.51,174.49,0.06]
[1753998135383,0.71,174.5,174.49,0.06]
[1753998135986,0.71,174.5,174.49,26.06]
[1753998136219,0.71,174.5,174.49,32.83004162]
[1753998136419,0.71,174.5,174.49,6.83004162]
[1753998137010,4.52186687,174.5,174.47,6.77004162]
[1753998137189,44.85440445,174.49,174.47,6.77004162]
[1753998137393,0.71,174.48,174.47,6.77004162]
[1753998140303,0.71,174.48,174.43,5.73289024]
[1753998140503,0.71,174.48,174.47,6.77004162]
[1753998140805,41.31,174.48,174.47,6.77004162]
[1753998141108,41.31,174.48,174.43,6.39289024]
[1753998141293,41.31,174.48,174.47,6.77004162]
[1753998145192,41.31,174.48,174.42,26.0]
[1753998145412,0.71,174.47,174.46,6.77004162]
[1753998146029,0.71,174.47,174.41,26.66]
[1753998146191,188.18,174.46,174.45,6.77004162]
[1753998146391,40.58,174.46,174.45,6.77004162]
[1753998146708,41.29,174.46,174.45,6.77004162]
[1753998148014,40.58,174.46,174.45,6.77004162]
[1753998148638,40.56,174.46,174.45,6.77004162]
[1753998149009,0.71,174.5,174.45,6.77004162]
[1753998149316,40.56,174.49,174.48,6.77004162]
[1753998151638,40.56,174.49,174.46,0.66]
[1753998151814,40.56,174.49,174.48,6.77004162]
[1753998154039,40.56,174.49,174.48,6.83004162]
[1753998156046,41.24,174.49,174.48,6.83004162]
[1753998157047,41.24,174.49,174.48,0.06]
[1753998157221,40.56,174.49,174.48,6.83004162]
[1753998157748,40.56,174.49,174.48,7.52004162]
[1753998158130,0.03,174.5,174.48,13.25135753]
[1753998158320,0.03,174.5,174.49,6.77004162]
[1753998159124,0.03,174.5,174.49,7.46004162]
[1753998159349,0.03,174.5,174.49,6.77004162]
[1753998161222,0.03,174.5,174.49,12.50102906]
[1753998161828,0.03,174.5,174.49,6.77004162]
[1753998162946,41.25,174.5,174.48,0.06]
[1753998163126,40.57,174.5,174.49,6.77004162]
[1753998163725,41.25,174.5,174.49,6.77004162]
[1753998164351,41.25,174.5,174.48,0.06]
[1753998164642,40.57,174.5,174.49,6.77004162]
[1753998164841,40.57,174.5,174.48,0.06]
[1753998165043,40.57,174.5,174.49,6.77004162]
[1753998165742,41.25,174.5,174.49,6.77004162]
[1753998165950,194.58079657,174.5,174.48,0.06]
[1753998166140,0.68,174.49,174.48,0.06]
[1753998166850,6.41098744,174.49,174.48,0.06]
[1753998167838,10.20881046,174.49,174.48,0.06]
[1753998168150,14.42839904,174.49,174.48,0.06]
[1753998169328,37.98312463,174.49,174.48,0.06]
[1753998173126,42.20520818,174.49,174.48,0.06]
[1753998174552,37.98312463,174.49,174.48,0.06]
[1753998174750,42.20547907,174.49,174.48,0.06]
[1753998175252,49.86500602,174.49,174.48,0.06]
[1753998175622,57.91133662,174.49,174.48,0.06]
[1753998176341,83.91133662,174.49,174.48,0.06]
[1753998176548,124.49133662,174.49,174.48,0.06]
[1753998176848,98.49133662,174.49,174.48,0.06]
[1753998177040,16.78468397,174.45,174.4,6.77004162]
[1753998177228,188.12,174.44,174.41,6.77004162]
[1753998177430,0.68,174.43,174.4,6.77004162]
[1753998177629,40.58,174.42,174.4,6.77004162]
[1753998179454,40.58,174.42,174.41,6.77004162]
[1753998180038,46.99328746,174.42,174.39,1e-08]
[1753998180250,147.54,174.41,174.39,6.77004163]
[1753998180554,188.22,174.4,174.39,6.77004163]
[1753998181067,188.9,174.4,174.39,1e-08]